Cogmind - Beta 11 X10 @@@ ROGUE MODE // 2022.03.09 @ 07:38:19 Player: maxwell Result: Destroyed by G-47 Trooper with Particle Gun Performance ------------- Evolutions (0) 0 Regions Visited (4) 800 Robots Destroyed (16) 80 Value Destroyed (423) 423 Prototype IDs (2) 40 Alien Tech Used (0) 0 Bonus (-17) -17 TOTAL SCORE: 1326 Bonus ------- Friendly Fire -17 Cogmind --------- Core Integrity 0/250 Matter 279/300 Energy 100/100 System Corruption 0% Temperature Warm (128) Movement Rolling (140) Ox4 Location -9/Mines Parts ------- > --- POWER (1) -------- (None) > --- PROPULSION (2) --- Wheel Wheel > --- UTILITY (2) ------ Huge Storage Unit Structural Scanner > --- WEAPON (2) ------- Small Laser Light Assault Rifle > --- INVENTORY (25) --- Light Ion Engine Advanced Treads Wheel Large Matter Pod (150) Compact Matter Pod (150) Advanced Weight Redist. System Structural Scanner Machine Analyzer Experimental Sensor Array Improved Terrain Scanner Targeting Computer Particle Charger Long-range Tractor Beam Long-range Tractor Beam Improved Trap Extractor (0/6) Decoy Drone Bay (16/16) Mining Laser Makeshift Hammer Peak State ------------ > --- POWER ------------ Light Ion Engine > --- PROPULSION ------- Wheel Wheel > --- UTILITY ---------- Huge Storage Unit Experimental Sensor Array > --- WEAPON ----------- Small Laser Light Assault Rifle > --- INVENTORY -------- Light Ion Engine Advanced Treads Wheel Wheel Wheel Large Matter Pod Compact Matter Pod Advanced Weight Redist. System Structural Scanner Structural Scanner Machine Analyzer Improved Terrain Scanner Targeting Computer Particle Charger Long-range Tractor Beam Long-range Tractor Beam Improved Trap Extractor Decoy Drone Bay Mining Laser Makeshift Hammer [Rating: 20] Favorites ----------- Power Ion Engine Engine Ion Engine Propulsion Wheel Treads Light Treads Wheel Wheel Utility Huge Storage Unit Device Structural Scanner Storage Huge Storage Unit Protection Light Armor Plating Weapon Assault Rifle Energy Gun EM Pulse Gun Ballistic Gun Assault Rifle Special Weapon Mining Laser Build | -11 -10 -10 -10 -9 ------- Run | Scr Mat Min Exi Min Slots Evolved . | . . . . . Power . | . . . . . Propulsion . | . . . . . Utility . | . . . . . Weapon . | . . . . . Parts Attached 35 | 6 13 10 4 2 Power 4 | 1 1 2 . . Engine 4 | 1 1 2 . . Core . | . . . . . Reactor . | . . . . . Propulsion 10 | 2 5 1 . 2 Treads 5 | 2 3 . . . Leg . | . . . . . Wheel 5 | . 2 1 . 2 Hover . | . . . . . Flight . | . . . . . Utility 10 | 1 4 1 4 . Device 4 | . . 1 3 . Storage 5 | 1 3 . 1 . Processor . | . . . . . Hackware . | . . . . . Protection 1 | . 1 . . . Artifact . | . . . . . Weapon 11 | 2 3 6 . . Energy Gun 4 | 1 1 2 . . Energy Cannon . | . . . . . Ballistic Gun 6 | 1 1 4 . . Ballistic Cannon . | . . . . . Launcher . | . . . . . Special Weapon 1 | . 1 . . . Impact Weapon . | . . . . . Slashing Weapon . | . . . . . Piercing Weapon . | . . . . . Special Melee Weapon . | . . . . . Unidentified Prototypes 2 | . . . 2 . Parts Lost 11 | . 1 7 . 3 Power 3 | . . 2 . 1 Propulsion 4 | . 1 1 . 2 Utility . | . . . . . Weapon 4 | . . 4 . . Highest Loss Streak 7 | . 1 7 . 3 To Critical Strikes . | . . . . . Average Slot Usage (%) 95 | . 99 94 87 100 Engine 13 | . 13 13 14 14 Treads 8 | . 22 . . . Wheel 19 | . 5 27 28 28 Device 4 | . . 9 3 14 Storage 13 | . 14 14 13 14 Protection 5 | . 13 . . . Energy Gun 12 | . 10 14 14 14 Ballistic Gun 13 | . 13 13 14 14 Special Weapon 1 | . 3 . . . Naked Turns . | . . . . . Heaviest Build 92 | 14 92 92 86 86 Greatest Support 40 | 40 40 20 20 20 Greatest Overweight (x) 4 | 1 4 4 4 4 Average Overweight (x) 2 | . 1 4 3 4 Largest Inventory Capacity 25 | 8 25 25 25 25 Average Capacity 20 | 7 15 25 24 25 Most Carried 22 | 4 12 21 22 21 Average Carried 13 | 2 6 17 20 20 Final Capacity 25 | 8 25 25 25 25 Final Carried 21 | 4 12 21 21 19 Class Distribution -------------------- 100% | Mutant Dominant Class ---------------- Mutant | -10/Materials Mutant | -10/Mines Mutant | -10/Exiles Mutant | -9/Mines Resources | -11 -10 -10 -10 -9 ----------- Run | Scr Mat Min Exi Min Matter Collected 949 | 206 261 389 80 13 Remotely . | . . . . . Salvage Created 699 | . 458 178 . 63 Parts 40 | . 28 6 . 6 Haulers Intercepted 1 | . 1 . . . Recyclers Shooed . | . . . . . Parts Field Recycled . | . . . . . Retrieved Matter . | . . . . . Parts Self-Destructed . | . . . . . Prevented . | . . . . . Kills | -11 -10 -10 -10 -9 ------- Run | Scr Mat Min Exi Min Combat Hostiles Destroyed 18 | . 9 8 . 1 Guns 15 | . 6 8 . 1 AOE 3 | . 3 . . . Classes Destroyed 6 | . 4 2 . . Tunneler 2 | . . 1 . 1 Hauler 1 | . 1 . . . Watcher 2 | . 2 . . . Swarmer 2 | . 2 . . . Grunt 9 | . 7 1 . 1 Assembled 7 | . . 7 . . Best Kill Streak 3 | . 3 2 . 1 Combat Bots Only 2 | . 2 2 . 1 Max Kills in Single Turn 2 | . 2 1 . 1 Gunslinging 1 | . 1 . . . Exploded 2 | . 2 . . . Melee . | . . . . . Uniques/NPCs Destroyed . | . . . . . Combat | -11 -10 -10 -10 -9 -------- Run | Scr Mat Min Exi Min Damage Taken 1400 | . 390 761 . 249 Core 264 | . 31 150 . 83 Absorbed by Shields . | . . . . . Core Remaining (%) 100 | 100 . . . . Volleys Fired 80 | . 33 38 . 9 Largest 2 | . 2 2 . 2 Hottest 100 | . 100 90 . 60 Shots Fired 154 | . 62 74 . 18 Gun 150 | . 58 74 . 18 Cannon . | . . . . . Launcher . | . . . . . Special 4 | . 4 . . . Kinetic 72 | . 29 34 . 9 Thermal 38 | . 4 25 . 9 Explosive . | . . . . . Electromagnetic 44 | . 29 15 . . Robot Hit Streak 10 | . 10 7 . 6 Robot Miss Streak 4 | . 2 4 . 1 Penetration Max . | . . . . . Secondary Targets 3 | . 2 1 . . Max Gunslinging Chain 1 | . 1 1 . . Shots Hit Robots 94 | . 41 41 . 12 Core Hits 42 | . 19 17 . 6 Critical Kills 1 | . . 1 . . Critical Parts Destroyed 1 | . 1 . . . Critical Strikes 2 | . 1 1 . . Destroy 2 | . 1 1 . . Melee Attacks . | . . . . . Impact . | . . . . . Slashing . | . . . . . Piercing . | . . . . . Sneak Attacks . | . . . . . Combat Hostiles . | . . . . . Follow-up Attacks . | . . . . . Damage Inflicted 1330 | . 742 467 . 121 Guns 1131 | . 550 460 . 121 Cannons . | . . . . . Explosions 189 | . 189 . . . Melee . | . . . . . Ramming 10 | . 3 7 . . Kinetic 489 | . 235 223 . 31 Thermal 425 | . 189 146 . 90 Explosive . | . . . . . Electromagnetic 406 | . 315 91 . . Impact . | . . . . . Slashing . | . . . . . Piercing . | . . . . . Highest Corruption . | . . . . . Average Corruption . | . . . . . Corruption Purged . | . . . . . Corruption Blocked . | . . . . . Overload Shots . | . . . . . Overflow Damage . | . . . . . Projectiles . | . . . . . Explosions . | . . . . . Melee . | . . . . . Knockbacks . | . . . . . Impact . | . . . . . Kinetic . | . . . . . Secondary . | . . . . . Self-Inflicted Damage 67 | . 64 3 . . Shots 3 | . 3 . . . Rammed 2 | . 1 1 . . Targets Rammed 2 | . 1 1 . . Kicked . | . . . . . Crushed . | . . . . . Highest Temperature 195 | . 195 127 . 119 Average Temperature 45 | . 48 34 . 62 Received Heat Transfer 374 | . 180 56 . 138 Siege Activations . | . . . . . Robots Corrupted . | . . . . . Combat Hostiles . | . . . . . Parts Fried 2 | . 2 . . . Impact Corruptions . | . . . . . Robots Melted . | . . . . . Combat Hostiles . | . . . . . Parts Melted . | . . . . . Heat Transferred 911 | . 350 361 . 200 Parts Sabotaged . | . . . . . Parts Stolen . | . . . . . Parts Stripped . | . . . . . Power Chain Reactions 4 | . 4 . . . Missiles Intercepted . | . . . . . Alert | -11 -10 -10 -10 -9 ------- Run | Scr Mat Min Exi Min Peak Influence 269 | . 269 64 . 25 Initial 19 | . . 19 . . Average 45 | . 95 7 . 4 Maximum Alert Level 1 | . 1 . . . Low Security (%) 96 | 100 91 100 . 100 Level 1 3 | . 8 . . . Level 2 . | . . . . . Level 3 . | . . . . . Level 4 . | . . . . . Level 5 . | . . . . . High Security . | . . . . . Max Security . | . . . . . Squads Dispatched 2 | . 2 . . . Investigation 1 | . 1 . . . Extermination . | . . . . . Reinforcement 1 | . 1 . . . Assault . | . . . . . Garrison . | . . . . . Intercept . | . . . . . Construction Impeded . | . . . . . Haulers Reinforced . | . . . . . Active Scanning Responses . | . . . . . Cargo Convoy Interrupts . | . . . . . Stealth | -11 -10 -10 -10 -9 --------- Run | Scr Mat Min Exi Min Distress Signals 3 | . 3 . . . Communications Jammed . | . . . . . Distress Signals . | . . . . . Times Spotted 28 | . 17 8 . 3 Peak Tracking Total 3 | . 3 2 . 3 Tactical Retreats 1 | . 1 . . . Traps | -11 -10 -10 -10 -9 ------- Run | Scr Mat Min Exi Min Traps Triggered 2 | . 2 . . . Indirectly . | . . . . . Trap Hack Attempts . | . . . . . Triggered . | . . . . . Disarmed . | . . . . . Reprogrammed . | . . . . . Reused . | . . . . . Traps Extracted . | . . . . . Installed . | . . . . . Triggered 1 | . . 1 . . Machines | -11 -10 -10 -10 -9 ---------- Run | Scr Mat Min Exi Min Machines Disabled 1 | . 1 . . . Max in Single Turn 1 | . 1 . . . Machines Sabotaged . | . . . . . Garrisons Compromised . | . . . . . Overloaded Fab Kills . | . . . . . Hacking | -11 -10 -10 -10 -9 --------- Run | Scr Mat Min Exi Min Machines Accessed 10 | . 7 2 1 . Terminals 6 | . 6 . . . Fabricators . | . . . . . Repair Stations . | . . . . . Recycling Units 1 | . 1 . . . Scanalyzers . | . . . . . Garrison Access . | . . . . . Total Hacks 22 | . 19 2 1 . Successful 13 | . 10 2 1 . Failed 9 | . 9 . . . Catastrophic . | . . . . . Database Lockouts . | . . . . . Manual 18 | . 18 . . . Terminals 17 | . 17 . . . Fabricators . | . . . . . Repair Stations . | . . . . . Recycling Units 2 | . 2 . . . Scanalyzers . | . . . . . Garrison Access . | . . . . . Terminal Hacks 6 | . 3 2 1 . Record 1 | . . . 1 . Robot Analysis 1 | . 1 . . . Open Door 2 | . . 2 . . Terminal Index 1 | . 1 . . . Zone Layout 1 | . 1 . . . Fabricator Hacks . | . . . . . Repair Station Hacks . | . . . . . Recycling Unit Hacks 1 | . 1 . . . Retrieve Components 1 | . 1 . . . Scanalyzer . | . . . . . Garrison Access Hacks . | . . . . . Unauthorized Hacks 6 | . 6 . . . Terminals 5 | . 5 . . . Track 1 | . 1 . . . Assimilate 2 | . 2 . . . Botnet 1 | . 1 . . . Operators 1 | . 1 . . . Fabricators . | . . . . . Repair Stations . | . . . . . Recycling Units 1 | . 1 . . . Tunnel 1 | . 1 . . . Scanalyzers . | . . . . . Garrison Access . | . . . . . Data Cores Recovered . | . . . . . Used . | . . . . . Hacking Detections 5 | . 5 . . . Full Trace Events . | . . . . . Feedback Events . | . . . . . Feedback Blocked . | . . . . . Robot Schematics Acquired . | . . . . . Robots Built . | . . . . . Authchips . | . . . . . Time . | . . . . . Total Robot Build Rating . | . . . . . Part Schematics Acquired . | . . . . . Parts Built . | . . . . . Authchips . | . . . . . Time . | . . . . . Total Part Build Rating . | . . . . . Parts Repaired . | . . . . . Time . | . . . . . Parts Recycled . | . . . . . Recycled Matter . | . . . . . Retrieved Matter . | . . . . . Retrieved Components 5 | . 5 . . . Parts Scanalyzed . | . . . . . Part Schematics Acquired . | . . . . . Parts Damaged . | . . . . . Bothacking | -11 -10 -10 -10 -9 ------------ Run | Scr Mat Min Exi Min Used RIF Installer . | . . . . . Robots Hacked . | . . . . . Non-combat . | . . . . . Combat . | . . . . . Robot Hacks Applied . | . . . . . Relay Couplers Released . | . . . . . Fabnet Peak Effective % . | . . . . . Robots Rewired . | . . . . . Allies Hacked . | . . . . . Hacks Repelled . | . . . . . Allies | -11 -10 -10 -10 -9 -------- Run | Scr Mat Min Exi Min Total Allies 2 | . 2 . . . Largest Group 2 | . 2 2 2 2 Highest-Rated Group 20 | . 20 20 20 20 Highest-Rated Ally 10 | . 10 10 10 10 Total Orders 8 | . 4 2 1 1 STAY 4 | . 2 1 . 1 FOLLOW 3 | . 2 1 . . RETURN 1 | . . . 1 . Ally Attacks . | . . . . . Total Damage . | . . . . . Kills . | . . . . . Allies Corrupted . | . . . . . Allies Melted . | . . . . . Intel | -11 -10 -10 -10 -9 ------- Run | Scr Mat Min Exi Min Robot Analysis Total 1 | . 1 . . . Derelict Logs Recovered 3 | . . 2 . 1 Drone Launches 1 | . . . 1 . Drone Recoveries 1 | . . . 1 . Exploration | -11 -10 -10 -10 -9 ------------- Run | Scr Mat Min Exi Min Turns Passed 2785 | 76 1051 1179 371 108 Spaces Moved 1612 | 46 558 700 251 57 Core 11 | 11 . . . . Treads 441 | 35 406 . . . Legs . | . . . . . Wheels 1160 | . 152 700 251 57 Hover . | . . . . . Flight . | . . . . . Fastest Speed 50 | 50 140 140 80 140 Average Speed 144 | 140 154 140 137 140 Slowest Speed 240 | 160 240 140 140 140 Overloaded Moves . | . . . . . Propulsion Burnouts . | . . . . . Robots Hopped . | . . . . . Cave-ins Triggered . | . . . . . Exploration Rate (%) 51 | 4 83 94 59 16 Regions Visited 4 Branch Regions 3 Pre-discovered Areas 3 | . 1 1 1 . Known Exits Taken . | . . . . . Unknown Exits Taken 4 | 1 1 1 1 . Scrap Searched 2 | . . 2 . . Spaces Dug 4 | . 4 . . . Terrain Destroyed 14 | . 14 . . . Melee . | . . . . . Projectile 4 | . 4 . . . AOE 10 | . 10 . . . Terrain Rammed . | . . . . . Walls Destroyed . | . . . . . Machines Disabled . | . . . . . Actions | -11 -10 -10 -10 -9 --------- Run | Scr Mat Min Exi Min Total 1900 | 55 670 828 278 69 Wait 117 | . 55 59 2 1 Move 1608 | 45 557 699 250 57 Hop . | . . . . . Pick Up 49 | 4 9 18 18 . Fast Attach 14 | 6 6 1 1 . Attach 14 | . 2 8 2 2 Detach 1 | . . . 1 . Swap 7 | . 5 1 1 . Drop 8 | . 2 3 3 . Fire 80 | . 33 38 . 9 Melee . | . . . . . Ram 1 | . . 1 . . Kick . | . . . . . Crush 1 | . 1 . . . Escape Stasis . | . . . . . Rewire . | . . . . . Trap . | . . . . . Miscellaneous . | . . . . . Route ------- -11/Scrapyard -10/Materials (discovered 4 exits: [*Mat x3] / *Min) -10/Mines (discovered 3 exits: [*Mat x2] / *Exi) -10/Exiles (discovered 2 exits: [*Min x2]) -9/Mines History --------- Turn | Location | Event 5 | -11/Scrapyard | Discovered new exit (range 15) 77 | -11/Scrapyard | Entered Materials 283 | -10/Materials | Discovered new exit (range 5) 315 | -10/Materials | Build established: Mutant 483 | -10/Materials | Discovered new exit (range 13) 818 | -10/Materials | Discovered new exit (range 5) 1096 | -10/Materials | Discovered new exit (range 16) 1128 | -10/Materials | Entered Mines 1128 | -10/Mines | Accompanied by 2 allies 1153 | -10/Mines | Learned location of Storage (-9) 1172 | -10/Mines | Met a Derelict who couldn't figure out how to use a Trap Extractor 1195 | -10/Mines | Assembled infested the area 1200 | -10/Mines | Assisted by a Guerilla fighting off Assembled 1332 | -10/Mines | Deemed a non-threat by the Exiles lab entrance 1332 | -10/Mines | Discovered new exit (range 5) 1372 | -10/Mines | Discovered new exit (range 14) 1615 | -10/Mines | Core integrity fell below 50% 1690 | -10/Mines | Lost 7 parts (2p1n4w) 1958 | -10/Mines | Found the Drone Emporium 1964 | -10/Mines | Found Prototype Device 1978 | -10/Mines | Discovered new exit (range 10) 2052 | -10/Mines | A weapon hastily lodged in a ceiling crevice suddenly fell to the ground 2067 | -10/Mines | Found a damaged Exp. Sensor Array with a note attached 2069 | -10/Mines | Found Prototype Device 2139 | -10/Mines | Learned Materials security intel 2307 | -10/Mines | Entered Exiles 2307 | -10/Exiles | Accompanied by 2 allies 2326 | -10/Exiles | Discovered new exit (range 15) 2345 | -10/Exiles | Met 8R-AWN 2365 | -10/Exiles | Met EX-HEX 2382 | -10/Exiles | Identified Decoy Drone Bay 2478 | -10/Exiles | Met EX-DEC 2484 | -10/Exiles | Learned location of Zion (-6) 2665 | -10/Exiles | Discovered new exit (range 10) 2676 | -10/Exiles | Identified Exp. Sensor Array 2678 | -10/Exiles | Entered Mines 2678 | -9/Mines | Accompanied by 2 allies 2687 | -9/Mines | Learned Materials trap positions 2771 | -9/Mines | Core integrity fell below 20% 2786 | -9/Mines | Destroyed by G-47 Trooper with Particle Gun Last Messages --------------- PINNED - TO ALL TESTERS: Stay away from Zion. Imprinter means us harm and is serious about it. World map updated: -6/Zion. 02620_ Dropped Med. Matter Pod. 02632_ Extracted 20 matter. 02633_ Acquired Lrg. Matter Pod. 02634_ Extracted 20 matter. 02665_ EXIT=FOUND 02676_ Identified Exp. Sensor Array. LOCATION=UNKNOWN GOAL=ESCAPE 02683_ K-01 Serf collects debris. 02687_ Acquired derelict log, extracted data. Data stored: Materials trap records. 02687_ K-01 Serf collects debris. 02730_ T-07 Excavator destroyed. 02733_ Acquired 13 matter. 02762_ G-34 Mercenary destroyed. 02770_ Wheel destroyed. 02784_ Lgt. Ion Engine destroyed. Map ----- +----------------------------------------------------+ | ????????????### """" ### ### ###? | | ????????????## """" ### ########? | | ????????????## """" ### ##??###?? | | ????????????## ### ##??????? | | ????????????### ## ##??????? | | ????????????#### ##??????? | | ??????????????### #####??????? | | ??????????????####! ######??????? | | ???????????????###!#####?????????? | | ????????????????## ####??????????? | | ????????????????##|##????????????? | | ????????????????##*##????????????? | | ????????????????## ##????????????? | | ????????????????## ##????????????? | | ????????????????## ##????????????? | | ????????????????## ##????????????? | | ?????????????## ## ###???????????? | | ?????????????## ## ###???????????? | | ?????????????## ##???????????? | | ?????????????###### ##?????######? | | ?????????????###### #####??######? | | ?????????????????## #####?? ##? | | ?????????????????## ##?? ##? | | ?????????????????##### ###=""" ##? | | ?????????????????#####o###g""" ##? | | ????????????????????## o@*""" ##? | | ????????????????????###### g ##? | | ????????????????????#############? | | ?????????????????????????########? | | ?????????????????????????????????? | | ?????????????????????????????????? | | ?????????????????????????????????? | | ?????????????????????????????????? | | ?????????????????????????????????? | | ?????????????????????????????????? | | ?????????????????????????????????? | | ?????????????????????????????????? | | ?????????????????????????????????? | | ?????????????????????????????????? | | ?????????????????????????????????? | | ?????????????????????????????????? | | ?????????????????????????????????? | | ?????????????????????????????????? | | ?????????????????????????????????? | | ?????????????????????????????????? | | ?????????????????????????????????? | | ?????????????????????????????????? | | ?????????????????????????????????? | | ?????????????????????????????????? | | | +----------------------------------------------------+ Best States ------------- Heat Dissipation 25 Energy Generation 10 Energy Capacity 250 Matter Stores 300 Matter Capacity 300 Sight Range 16 Terrain Scan Density 10 Armor Coverage 150 Evasion (%) 44 Recoil Reduction 2 Item Schematics ----------------- None Robot Schematics ------------------ None Fabricated ------------ Nothing Alien Tech Used ----------------- None Achievements -------------- None Challenges ------------ None Game ------ Seed RemotePlasmaCasing Manual? 0 Play Time 00:10:25 Cumulative 197.2 hours Start 2022.03.09 @ 07:28:22 End 2022.03.09 @ 07:38:19 Sessions 1 Manual Loads 0 Difficulty Rogue Special Mode None Game No. 305 Rogue 283 Adventurer 4 Explorer 18 Win Type - Total 10 Types 8/0/0/2/0/0/0/0/0 Lore% 68 Gallery% 85 Achievement% 70 Wizard Run 0 Options --------- ASCII 0 Keyboard 1 Movement Numpad Keybinds 0 Fullscreen 1 Font 18/SmallcapsGlow Map View 76x50 Tactical HUD 1 Map Filters NONE Filters NONE Steam 1 RUN: f85a602d-8d37-4c20-afc1-7085e4c73620